[Event "German Bundesliga 2021-22"]
[Site "Germany"]
[Date "2022.04.30"]
[Round "5.7"]
[White "Jakubowski, Krzysztof"]
[Black "Doettling, Fabian"]
[Result "1/2-1/2"]
[ECO "B10"]
[WhiteElo "2475"]
[BlackElo "2587"]
[Annotator "TA"]
[PlyCount "40"]
[EventDate "2022.03.05"]
[EventType "team-tourn"]
[EventCountry "GER"]
[SourceTitle "playchess.com"]
[Source "ChessBase"]
[SourceQuality "1"]
[TimeControl "40/5400+30:1800+30"]

{[%evp 9,40,0,15,13,33,33,28,21,22,0,0,0,0,8,9,0,4,0,0,0,0,0,0,0,-4,-4,-4,0,0,0,0,-9,0]} 1. e4 {[%emt 0:00:00]} c6 {[%emt 0:00:00]} 2. Nf3 {[%emt 0:00:00][%cal Bg1f3,Bf3d2,Bd2b3,Bb3c1,Bc1d3][%mdl 32]} d5 {[%emt 0:00:00]} 3. d3 {[%emt 0:00:00]} dxe4 {[%emt 0:00:00]} 4. dxe4 {[%emt 0:00:00]} Qxd1+ {[%emt 0:00:00]} 5. Kxd1 {[%emt 0:00:00]} Nf6 {[%emt 0:00:00]} 6. Nfd2 {[%emt 0:00:00] B10: Caro-Kann: 2 d3 and 2 c4.} g6 {[%emt 0:00:00]} 7. f3 {[%emt 0:00:00]} Bh6 {[%emt 0:01:00]} 8. a4 {[%emt 0:18:30] White has an edge.} Be6 {[%emt 0:12:30] [#] The position is equal.} 9. Nb3 $146 {[%emt 0:16:30]} ({Predecessor:} 9. c3 Nbd7 10. Kc2 Ne5 11. Na3 O-O-O 12. Ndc4 Bxc1 13. Rxc1 Nfd7 14. Rd1 g5 15. Be2 {0-1 (61) Pichot,A (2630)-Svane,R (2613) Chess.com INT 2020}) 9... Bxc1 {[%emt 0:01:30]} 10. Nxc1 {[%emt 0:00:30]} Nbd7 {[%emt 0:27:30]} 11. Nd2 {[%emt 0:02:30]} O-O-O {[%emt 0:09:30]} 12. Nd3 {[%emt 0:00:30] Against Ne5} g5 {[%emt 0:04:30]} 13. Ke2 {[%emt 0:08:30]} h6 {[%emt 0:08:30]} 14. Ke3 $1 {[%emt 0:14:30]} Ne8 {[%emt 0:01:30][%cal Bf6e8,Be8d6,Bd6f7,Bf7e5][%mdl 32]} 15. h4 {[%emt 0:05:30] And now hxg5 would win.} Nd6 {[%emt 0:01:30]} 16. b3 {[%emt 0:01:30]} f5 {[%emt 0:03:30]} 17. g3 {[%emt 0:00:30]} fxe4 {[%emt 0:06:30]} 18. fxe4 {[%emt 0:00:30]} Nf7 {[%emt 0:09:16]} 19. hxg5 {[%emt 0:11:42]} hxg5 {[%emt 0:00:08]} 20. Bg2 {[%emt 0:00:18]} Nfe5 {[%emt 0:01:57] Weighted Error Value: White=0.02 (flawless) /Black=0.02 (flawless)} 1/2-1/2

[Event "German Bundesliga 2021-22"]
[Site "Germany"]
[Date "2022.04.30"]
[Round "5.7"]
[White "Olsen, Filip Boe"]
[Black "Andersen, Mads"]
[Result "0-1"]
[ECO "D27"]
[WhiteElo "2402"]
[BlackElo "2570"]
[Annotator "TA"]
[PlyCount "96"]
[EventDate "2022.03.05"]
[EventType "team-tourn"]
[EventCountry "GER"]
[SourceTitle "playchess.com"]
[Source "ChessBase"]
[SourceQuality "1"]
[TimeControl "40/5400+30:1800+30"]

{[%evp 15,96,34,34,33,39,35,29,26,38,28,28,14,25,0,0,0,13,0,9,0,0,-29,-20,-27,-26,-26,-17,-13,0,-2,0,0,0,0,6,0,0,-27,-28,-142,-142,-172,-185,-172,-156,-197,-99,-172,-172,-161,-168,-168,-169,-169,-169,-287,-144,-220,-61,-61,-61,-61,-61,-391,-383,-785,-775,-29946,-29950,-29948,-29953,-29961,-29958,-1546,-1546,-1531,-1430,-29962,-29963,-29975,-29977,-29975,-29977]} 1. d4 {[%emt 0:00:00]} d5 {[%emt 0:00:00]} 2. c4 {[%emt 0:00:00]} dxc4 {[%emt 0:00:00]} 3. Nf3 {[%emt 0:00:00]} Nf6 {[%emt 0:00:00]} 4. e3 {[%emt 0:00:00]} e6 {[%emt 0:00:00]} 5. Bxc4 {[%emt 0:00:00]} c5 {[%emt 0:00:00]} 6. O-O {[%emt 0:00:00]} a6 {[%emt 0:00:00]} 7. dxc5 {[%emt 0:00:00]} Bxc5 {[%emt 0:00:00]} 8. Qxd8+ {[%emt 0:00:00]} Kxd8 {[%emt 0:00:00]} 9. Be2 {[%emt 0:00:00] D27: Queen's Gambit Accepted: Classical main line: 7 e4!? and 7 a4.} Ke7 {[%emt 0:00:00]} 10. Nc3 {[%emt 0:00:00]} b5 {[%emt 0:00:00] Against Na4} 11. Nd2 {[%emt 0:00:00] White has an edge.} Bb7 {[%emt 0:00:00]} 12. Nb3 {[%emt 0:00:00]} Nbd7 {[%emt 0:00:00]} 13. Na5 {[%emt 0:00:00]} Rab8 {[%emt 0:00:00]} 14. Nxb7 {[%emt 0:00:00]} Rxb7 {[%emt 0:00:00]} 15. Bd2 {[%emt 0:00:00]} Rc7 {[%emt 0:00:00]} 16. Rfd1 {[%emt 0:05:09]} Rhc8 {[%emt 0:17:00] [#]} 17. Kf1 $146 {[%emt 0:14:03]} ({Predecessor:} 17. Be1 Bd6 18. Bxb5 axb5 19. Nxb5 Rc6 20. Na7 Be5 21. Nxc8+ Rxc8 22. Rab1 Ra8 23. a3 {½-½ (46) Carlsen,M (2862)-So,W (2770) chess24.com INT 2020}) 17... Bd6 {[%emt 0:11:10]} 18. h3 {[%emt 0:17:53]} Nc5 {[%emt 0:09:13] Strongly threatening ...b4.} 19. Rac1 {[%emt 0:07:32][%cal Oe2b5]} b4 {[%emt 0:16:43]} 20. Nb1 {[%emt 0:00:43]} a5 {[%emt 0:00:07]} 21. a3 {[%emt 0:13:11]} Nb3 {[%emt 0:09:56]} 22. Rxc7+ {[%emt 0:00:19]} Rxc7 {[%emt 0:00:07]} 23. axb4 {[%emt 0:01:31]} axb4 {[%emt 0:01:33]} 24. Be1 {[%emt 0:01:56]} Ne4 {[%emt 0:10:22]} 25. Bd3 {[%emt 0:02:08]} f5 {[%emt 0:00:15]} 26. f3 {[%emt 0:09:49]} Ng3+ {[%emt 0:03:09]} 27. Kf2 {[%emt 0:01:35]} (27. Kg1 $11) 27... Nc1 $1 $17 {[%emt 0:02:17] Pair of Knights!} 28. Bb5 {[%emt 0:03:05][%cal Od1d6]} Rc2+ {[%emt 0:01:16]} 29. Rd2 {[%emt 0:00:45]} b3 {[%emt 0:00:56]} 30. Kg1 {[%emt 0:16:48] [#]} f4 {[%emt 0:15:45] Active counter play!} (30... Na2 $1 $19 31. Rxd6 Kxd6) 31. exf4 {[%emt 0:03:20]} (31. Bxg3 $17 {was worth a try.} fxg3 32. Ba4) 31... Nce2+ $19 {[%emt 0:00:41]} 32. Bxe2 {[%emt 0:01:15]} Nxe2+ {[%emt 0:02:53]} 33. Kf1 {[%emt 0:00:45]} Nxf4 {[%emt 0:00:13] Threatens to win with ...Bb4.} 34. Nc3 {[%emt 0:02:04]} Be5 {[%emt 0:01:02]} 35. Na4 {[%emt 0:02:00]} ({Don't play} 35. Bh4+ Kf7 36. Rd7+ Kg6 $19) (35. Rxc2 $142 bxc2 36. Na2) 35... g5 {[%emt 0:02:21]} (35... Nd5 $19 {...Rc4 is the strong threat.} 36. Bh4+ Kd6) 36. h4 {[%emt 0:01:15]} (36. g3 $17 Nd5 37. Rxc2 bxc2 38. Bd2) 36... h6 $2 {[%emt 0:00:36]} (36... Nd5 $19 {Hoping for ...Ne3+.} 37. hxg5 Rc4) 37. hxg5 $15 {[%emt 0:00:07]} hxg5 {[%emt 0:00:05] And now ...Nd5 would win.} 38. g3 {[%emt 0:00:57]} Nd5 {[%emt 0:00:35] White must now prevent ...Rc4.} 39. Ke2 $2 {[%emt 0:00:37][%mdl 8192] Now White is beyond hope.} (39. Rxc2 $1 $15 bxc2 40. Bd2) 39... Rc4 $19 {[%emt 0:00:19]} 40. Nc3 $2 {[%emt 0:01:11]} (40. Rd3) 40... Nxc3+ {[%emt 0:00:42]} 41. bxc3 {[%emt 0:00:00]} Bxc3 {[%emt 0:00:00]} 42. Rd1 {[%emt 0:00:00]} Bxe1 {[%emt 0:00:00]} 43. Rxe1 {[%emt 0:00:00] KR-KR} b2 {[%emt 0:00:00]} 44. Kd2 {[%emt 0:00:00]} Kd6 {[%emt 0:00:00]} 45. Rb1 {[%emt 0:00:00]} Rb4 {[%emt 0:00:00] ( -> ...Kd5)} 46. Kc3 {[%emt 0:00:00] [#]} Kc5 $1 {[%emt 0:00:00] Black mates.} 47. f4 {[%emt 0:00:00]} gxf4 {[%emt 0:00:00]} 48. gxf4 {[%emt 0:00:00]} Rxf4 {[%emt 0:00:00] Weighted Error Value: White=0.66/Black=0.17 (very precise)} 0-1

[Event "German Bundesliga 2021-22"]
[Site "Germany"]
[Date "2022.04.30"]
[Round "5.7"]
[White "Costa, Leonardo"]
[Black "Lindgren, Philip"]
[Result "1/2-1/2"]
[ECO "B12"]
[WhiteElo "2324"]
[BlackElo "2361"]
[Annotator "TA"]
[PlyCount "114"]
[EventDate "2022.03.05"]
[EventType "team-tourn"]
[EventCountry "GER"]
[SourceTitle "playchess.com"]
[Source "ChessBase"]
[SourceQuality "1"]
[TimeControl "40/5400+30:1800+30"]

{[%evp 10,114,14,20,19,24,42,16,26,26,32,0,5,0,0,-5,0,0,0,0,0,0,0,-25,0,0,0,-14,0,-13,0,0,0,-10,0,0,0,-10,20,-22,0,0,11,5,1,0,12,14,15,32,32,0,0,10,61,70,56,23,80,52,65,0,0,0,0,0,0,0,4,0,0,0,0,0,0,0,0,0,0,0,0,0,0,0,0,0,0,0,0,0,0,0,0,0,0,0,0,0,0,0,0,0,0,0,0,0,0]} 1. e4 {[%emt 0:00:00]} c6 {[%emt 0:00:00]} 2. d4 {[%emt 0:00:00]} d5 {[%emt 0:00:00]} 3. e5 {[%emt 0:00:00]} Bf5 {[%emt 0:00:00]} 4. Nd2 {[%emt 0:00:00]} e6 {[%emt 0:00:00]} 5. Nb3 {[%emt 0:00:00]} Nd7 {[%emt 0:00:00]} 6. Nf3 {[%emt 0:00:00]} Bg6 {[%emt 0:00:00] B12: Caro-Kann: Advance Variation.} 7. Be2 {[%emt 0:00:00]} Nh6 {[%emt 0:00:00]} 8. O-O {[%emt 0:00:00]} Nf5 {[%emt 0:00:00]} 9. Bd2 {[%emt 0:03:17]} Be7 {[%emt 0:02:41]} 10. a4 {[%emt 0:02:47]} O-O {[%emt 0:03:24]} 11. a5 {[%emt 0:11:35]} c5 {[%emt 0:12:27]} 12. Nxc5 {[%emt 0:04:43]} Nxc5 {[%emt 0:05:19]} 13. dxc5 {[%emt 0:00:05]} Bxc5 {[%emt 0:01:13]} 14. b4 {[%emt 0:04:56]} Be7 {[%emt 0:01:17] [#]} 15. Rc1 $146 {[%emt 0:10:19]} ({Predecessor:} 15. c4 dxc4 16. Bxc4 Nd4 17. Nxd4 Qxd4 18. Qe2 Rfd8 19. Rfd1 Bc2 20. Rdc1 Qxd2 21. Rxc2 Qxb4 {½-½ (37) Warszawski,B (2165)-Konieczynski,P (1884) Jastrzebia Gora 2018}) 15... Rc8 {[%emt 0:06:09]} 16. Bd3 {[%emt 0:04:05]} Nh4 {[%emt 0:26:00]} 17. Nd4 {[%emt 0:06:44]} Qd7 {[%emt 0:04:11]} 18. Qg4 {[%emt 0:08:52]} Rfd8 {[%emt 0:03:23]} 19. Rfe1 {[%emt 0:13:47]} a6 {[%emt 0:03:17]} 20. g3 {[%emt 0:04:01]} Nf5 {[%emt 0:04:22]} 21. Nf3 {[%emt 0:00:04]} Rc7 {[%emt 0:03:01]} 22. Rb1 {[%emt 0:04:15]} Rdc8 {[%emt 0:01:30]} 23. Rb2 {[%emt 0:00:07]} Bf8 {[%emt 0:06:29]} 24. Reb1 {[%emt 0:01:06]} Ne7 {[%emt 0:04:35]} 25. b5 {[%emt 0:05:00]} Bf5 {[%emt 0:06:58]} 26. Qa4 {[%emt 0:04:01]} h6 {[%emt 0:04:28]} 27. Qb3 {[%emt 0:02:40]} axb5 {[%emt 0:01:04]} 28. Qxb5 {[%emt 0:02:08]} Nc6 {[%emt 0:00:38][%cal Be7c6,Bc6d8,Bd8e6][%mdl 32]} 29. Bxf5 {[%emt 0:03:12]} exf5 {[%emt 0:00:06]} 30. Qd3 {[%emt 0:00:55]} Bc5 {[%emt 0:01:56]} 31. Bf4 {[%emt 0:01:29][%cal Oe5e6]} Qe6 {[%emt 0:00:45]} (31... Nxa5 $11 32. e6 fxe6) 32. Rb5 $14 {[%emt 0:00:11]} (32. Rxb7 Rxb7 33. Rxb7 Nxa5 $11) 32... Nd8 {[%emt 0:00:41][%cal Od5d4]} 33. h4 {[%emt 0:01:30]} Rd7 {[%emt 0:00:20]} (33... d4 $11 {remains equal.}) 34. c3 $16 {[%emt 0:01:47]} Qg6 {[%emt 0:00:44]} 35. Nd4 {[%emt 0:02:25]} (35. Qd2 $1 $14) 35... Bxd4 $11 {[%emt 0:00:24] The position is equal.} 36. cxd4 {[%emt 0:00:04]} (36. Qxd4 Ne6 37. Qd2 d4 $17) 36... Ne6 {[%emt 0:00:24]} 37. Be3 {[%emt 0:01:28]} Qg4 {[%emt 0:00:41]} 38. Qd1 {[%emt 0:00:07]} Qe4 {[%emt 0:00:30]} 39. Rxb7 {[%emt 0:01:44]} Rxb7 {[%emt 0:00:30]} 40. Rxb7 {[%emt 0:00:05] [#] And now a6 would win.} f4 {[%emt 0:00:31]} 41. gxf4 {[%emt 0:00:00]} Nxf4 {[%emt 0:00:00]} 42. Bxf4 {[%emt 0:00:00]} Qxf4 {[%emt 0:00:00][%mdl 4096] Endgame KQR-KQR} 43. Kg2 {[%emt 0:00:00] aiming for a6.} Rc1 {[%emt 0:00:00]} 44. Rb8+ {[%emt 0:07:29]} Kh7 {[%emt 0:00:00]} 45. Qd3+ {[%emt 0:00:08]} ({Not} 45. Qf3 $2 {[#]} Rg1+ $3 {[%mdl 512]} 46. Kxg1 Qxf3 $19) 45... g6 {[%emt 0:00:00]} 46. Rb3 {[%emt 0:00:49] Hoping for Qf3.} Qxh4 {[%emt 0:00:00] Threatens to win with ...Qh1+.} 47. Qh3 {[%emt 0:01:00] Prevents Qh1+.} Qxd4 {[%emt 0:05:44] ...Qd1 is the strong threat.} 48. Qf3 {[%emt 0:02:26]} Rc7 {[%emt 0:01:23]} 49. a6 {[%emt 0:02:45] Black must now prevent Rb7.} Qxe5 {[%emt 0:02:36]} 50. Rb7 {[%emt 0:00:02] Strongly threatening a7.} Qg5+ $1 {[%emt 0:15:57]} 51. Kh3 {[%emt 0:03:57]} ({Much worse is} 51. Qg3 Qxg3+ 52. fxg3 (52. Kxg3 Rc3+ 53. Kf4 Kg7 $17) 52... Rc2+ 53. Kf3 Kg7 $17) 51... Qd8 {[%emt 0:00:53]} 52. Rxc7 {[%emt 0:01:59] Active counter play!} Qxc7 {[%emt 0:00:07]} 53. Qxd5 {[%emt 0:00:03] KQ-KQ} Qc8+ {[%emt 0:00:17]} 54. Kh2 {[%emt 0:00:05]} Qxa6 {[%emt 0:00:13]} 55. Qxf7+ {[%emt 0:00:03]} Kh8 {[%emt 0:00:07]} 56. Qf8+ {[%emt 0:00:04]} Kh7 {[%emt 0:00:04]} 57. Qf7+ {[%emt 0:00:04]} Kh8 {[%emt 0:00:03] Weighted Error Value: White=0.07 (flawless) /Black=0.09 (flawless)} 1/2-1/2

[Event "German Bundesliga 2021-22"]
[Site "Germany"]
[Date "2022.04.30"]
[Round "5.8"]
[White "Predojevic, Borki"]
[Black "Pajeken, Jakob Leon"]
[Result "1-0"]
[ECO "A06"]
[WhiteElo "2585"]
[BlackElo "2370"]
[Annotator "TA"]
[PlyCount "63"]
[EventDate "2022.03.05"]
[EventType "team-tourn"]
[EventCountry "GER"]
[SourceTitle "playchess.com"]
[Source "ChessBase"]
[SourceQuality "1"]
[TimeControl "40/5400+30:1800+30"]

{[%evp 15,63,24,51,22,41,37,60,42,57,32,32,25,30,28,30,27,27,28,95,91,173,180,229,220,224,216,240,220,232,246,221,224,239,233,277,262,323,225,546,542,811,821,814,797,793,781,792,749,707,686]} 1. Nf3 {[%emt 0:00:00]} d5 {[%emt 0:00:00]} 2. g3 {[%emt 0:00:00]} Nf6 {[%emt 0:00:00]} 3. Bg2 {[%emt 0:00:00]} g6 {[%emt 0:00:00]} 4. c4 {[%emt 0:00:00]} c6 {[%emt 0:00:00]} 5. b3 {[%emt 0:00:00]} Bg7 {[%emt 0:00:00]} 6. Bb2 {[%emt 0:00:00]} O-O {[%emt 0:00:00]} 7. O-O {[%emt 0:00:23]} Bf5 {[%emt 0:00:00]} 8. d3 {[%emt 0:03:41]} a5 {[%emt 0:06:38] is now more promising than 8...Qc8.} 9. Nbd2 {[%emt 0:09:15] A11: English Opening: 1...c6.} Na6 {[%emt 0:02:39]} 10. a3 {[%emt 0:05:25]} Rc8 {[%emt 0:19:49]} 11. Rc1 {[%emt 0:16:37] White is slightly better.} b5 {[%emt 0:10:58]} 12. cxd5 {[%emt 0:10:49]} cxd5 {[%emt 0:01:33]} 13. Rxc8 {[%emt 0:00:16]} Qxc8 {[%emt 0:00:57]} 14. Qa1 {[%emt 0:00:41]} Qb7 {[%emt 0:07:59] [#]} 15. e4 $146 {[%emt 0:22:39]} ({Predecessor:} 15. Rc1 Rc8 16. Be5 Bd7 17. Rxc8+ Qxc8 18. Qc3 Qxc3 19. Bxc3 b4 20. axb4 Nxb4 21. Be5 e6 22. Bc7 a4 23. bxa4 {½-½ (23) Akopian,V (2673)-Sargissian,G (2643) Yerevan 2008}) 15... dxe4 {[%emt 0:16:25]} 16. dxe4 {[%emt 0:00:07]} Bg4 {[%emt 0:05:13] [#]} (16... Bd7 $11 {remains equal.}) 17. e5 $1 $16 {[%emt 0:04:37] White leaves nothing to chance now.} Nd5 {[%emt 0:08:34] [#]} (17... Ne8 $16) 18. e6 $1 $18 {[%emt 0:00:39]} Bxb2 {[%emt 0:08:47]} (18... f6 {was called for.}) 19. exf7+ {[%emt 0:00:34]} Rxf7 {[%emt 0:00:06]} 20. Qxb2 {[%emt 0:00:05] aiming for Ng5.} Rf8 {[%emt 0:03:05]} 21. Qd4 {[%emt 0:06:55]} Nf6 {[%emt 0:03:36]} 22. Ne5 {[%emt 0:00:27][%csl LRb7,LRg4] Prevents Qc6.} Qc8 {[%emt 0:00:35]} 23. Nxg4 {[%emt 0:01:22]} Qxg4 {[%emt 0:00:19]} 24. Qb6 {[%emt 0:02:30][%csl LRa5,LRa6,LRb5]} Qe2 {[%emt 0:01:29]} 25. Nf3 {[%emt 0:08:11][%cal Bd2f3,Bf3d4,Bd4c6][%mdl 32]} ({Don't take} 25. Qxa6 $6 Qxd2 26. Qxb5 Qc3 $16) 25... b4 {[%emt 0:02:27]} 26. Qxa5 {[%emt 0:00:41]} Ng4 $2 {[%emt 0:01:45]} (26... bxa3 {is more resistant.} 27. Qxa3 Rd8) 27. axb4 {[%emt 0:02:51] White is clearly winning.} Rb8 {[%emt 0:00:33]} 28. Nd4 {[%emt 0:00:59] Prevents Qb5.} Qe5 {[%emt 0:00:31]} 29. Nc6 {[%emt 0:01:26]} Qxa5 {[%emt 0:00:11]} 30. bxa5 {[%emt 0:00:05]} ({Less strong is} 30. Nxa5 Nxb4 31. Rd1 Nf6 $16) 30... Rb5 {[%emt 0:00:20]} 31. Ra1 {[%emt 0:00:39]} Nc7 {[%emt 0:00:56]} 32. b4 {[%emt 0:00:43] Weighted Error Value: White=0.10 (very precise) /Black=0.56} 1-0

[Event "German Bundesliga 2021-22"]
[Site "Germany"]
[Date "2022.04.30"]
[Round "5.8"]
[White "Rafiee, Makan"]
[Black "Pitl, Gregory"]
[Result "1/2-1/2"]
[ECO "B15"]
[WhiteElo "2338"]
[BlackElo "2379"]
[Annotator "TA"]
[PlyCount "46"]
[EventDate "2022.03.05"]
[EventType "team-tourn"]
[EventCountry "GER"]
[SourceTitle "playchess.com"]
[Source "ChessBase"]
[SourceQuality "1"]
[TimeControl "40/5400+30:1800+30"]

{[%evp 14,46,27,19,27,25,42,12,35,40,26,9,53,74,68,62,100,70,135,120,121,122,144,115,124,102,112,52,53,61,82,77,79,59,40]} 1. e4 {[%emt 0:00:00]} c6 {[%emt 0:00:00]} 2. d4 {[%emt 0:00:00]} d5 {[%emt 0:00:00]} 3. Nc3 {[%emt 0:00:00]} dxe4 {[%emt 0:00:00]} 4. Nxe4 {[%emt 0:00:00]} Nf6 {[%emt 0:00:00]} 5. Nxf6+ {[%emt 0:00:00]} exf6 {[%emt 0:00:00]} 6. c3 {[%emt 0:00:00]} Bd6 {[%emt 0:00:00]} 7. Bd3 {[%emt 0:00:00]} O-O {[%emt 0:00:00]} 8. Qc2 {[%emt 0:00:00] Active counter play!} Re8+ {[%emt 0:00:00] B15: Caro-Kann: 3 Nc3: 3...g6 and 3...dxe4 4 Nxe4 Nf6 5 Nxf6+ exf6.} 9. Ne2 {[%emt 0:00:00]} h6 {[%emt 0:00:00]} 10. Bd2 {[%emt 0:00:00]} Be6 {[%emt 0:05:14] The position is equal.} 11. O-O {[%emt 0:02:08]} Qc7 {[%emt 0:09:26]} 12. Ng3 {[%emt 0:15:09]} Nd7 {[%emt 0:10:14]} 13. f4 {[%emt 0:05:26]} b5 {[%emt 0:11:44]} 14. b3 {[%emt 0:06:08] [#] f5 is the strong threat.} Qb6 $146 {[%emt 0:13:43]} ({Predecessor:} 14... Nf8 15. c4 bxc4 16. bxc4 Rad8 17. c5 Be7 18. f5 Bd5 19. Rf4 Nh7 20. Rg4 Kh8 {½-½ (40) Asis Gargatagli,H (2538)-Iturrizaga Bonelli,E (2652) Maia 2018}) 15. Kh1 {[%emt 0:21:59]} c5 {[%emt 0:04:10]} (15... Rad8 $14) 16. c4 {[%emt 0:02:15] [#] Black must now prevent d5.} Nf8 {[%emt 0:01:09]} 17. d5 {[%emt 0:10:36]} ({Much worse is} 17. cxb5 $6 cxd4 18. Qd1 Qb7 $11) 17... Bd7 {[%emt 0:00:05]} 18. Bc3 {[%emt 0:03:50]} Qc7 {[%emt 0:05:19]} 19. Qf2 {[%emt 0:15:57][%cal Oc3f6] Threatens to win with Bxf6!} ({Don't take} 19. cxb5 Bxf4 20. Ne4 Bxh2 $11) 19... Ng6 {[%emt 0:01:02] [#]} 20. Bd2 {[%emt 0:02:59]} (20. Ne4 $1 $16) 20... Rab8 $14 {[%emt 0:00:44]} 21. Ne4 {[%emt 0:04:10]} bxc4 {[%emt 0:01:29]} 22. bxc4 {[%emt 0:00:24]} Rb2 {[%emt 0:02:50][%cal Og6f4]} 23. Nxd6 {[%emt 0:01:10]} Qxd6 {[%emt 0:00:11] Weighted Error Value: White=0.15 (very precise) /Black=0.12 (very precise)} 1/2-1/2

[Event "German Bundesliga 2021-22"]
[Site "Germany"]
[Date "2022.04.30"]
[Round "5.8"]
[White "Agrest, Inna"]
[Black "Colbow, Collin"]
[Result "0-1"]
[ECO "B48"]
[WhiteElo "2258"]
[BlackElo "2370"]
[Annotator "TA"]
[PlyCount "92"]
[EventDate "2022.03.05"]
[EventType "team-tourn"]
[EventCountry "GER"]
[SourceTitle "playchess.com"]
[Source "ChessBase"]
[SourceQuality "1"]
[TimeControl "40/5400+30:1800+30"]

{[%evp 11,92,26,45,22,14,13,36,34,47,0,56,52,170,167,200,73,218,226,210,203,203,0,0,-176,-188,-575,-363,-405,-404,-402,-131,-455,-452,-546,-437,-797,-443,-538,-506,-557,-509,-537,-541,-586,-579,-784,-597,-601,-594,-604,-602,-597,-595,-618,-477,-664,-634,-662,-656,-660,-652,-634,-641,-697,-711,-688,-654,-701,-684,-684,-684,-684,-684,-973,-957,-754,-684,-684,-679,-758,-758,-29967,-12222]} 1. e4 {[%emt 0:00:00]} c5 {[%emt 0:00:00]} 2. Nf3 {[%emt 0:00:00]} e6 {[%emt 0:00:00]} 3. d4 {[%emt 0:00:00]} cxd4 {[%emt 0:00:00]} 4. Nxd4 {[%emt 0:00:00]} Nc6 {[%emt 0:00:00]} 5. Nc3 {[%emt 0:00:00]} Qc7 {[%emt 0:00:00]} 6. Be3 {[%emt 0:00:00]} a6 {[%emt 0:00:00]} 7. Qf3 {[%emt 0:00:00] 7.g4 is the modern continuation. B48: Sicilian: Taimanov: 5 Nc3 Qc7 6 Be3 a6 without Be2.} Nf6 {[%emt 0:00:00][%cal Of8a3]} 8. O-O-O {[%emt 0:00:00]} Ne5 {[%emt 0:00:00]} 9. Qg3 {[%emt 0:00:00] White is slightly better.} b5 {[%emt 0:00:00] [#] aiming for ...b4.} 10. a3 {[%emt 0:03:39]} (10. f4 $14 Neg4 11. Bg1) 10... d6 {[%emt 0:11:30]} (10... Bb7 $11) 11. f4 $14 {[%emt 0:14:11] [#]} Nc4 $146 {[%emt 0:19:35]} (11... Ned7) ({Black should try} 11... Ned7 $1 $14) ({Predecessor:} 11... Neg4 12. Bg1 e5 13. Nde2 Bb7 14. h3 exf4 15. Nxf4 Ne5 16. Bd3 g6 17. Be3 Rc8 {0-1 (51) Zhu,Y (2178)-Peng,H (2334) Moscow 2019}) 12. Bxc4 $18 {[%emt 0:06:34]} bxc4 {[%emt 0:02:44]} 13. Rhe1 {[%emt 0:04:30]} (13. e5) (13. e5 $18 {is the precise move to win.}) 13... Rb8 {[%emt 0:07:29]} (13... Bb7) (13... Bb7 $16 {keeps fighting.}) 14. e5 {[%emt 0:17:17]} dxe5 {[%emt 0:06:40]} 15. fxe5 {[%emt 0:04:58]} Nd7 {[%emt 0:05:13] [#]} 16. Nf5 $2 {[%emt 0:31:42]} exf5 $11 {[%emt 0:03:30]} 17. Nd5 $2 {[%emt 0:01:50] White is now going downhill.} (17. e6 $11 Qxg3 18. exd7+ Bxd7 19. hxg3 (19. Bf2+ Be6 $11)) 17... Qb7 $19 {[%emt 0:02:31]} 18. Qg5 $2 {[%emt 0:11:45]} (18. Bd4 Qxd5 19. e6 fxe6 20. Bxg7 Qxd1+ 21. Rxd1 (21. Kxd1 $2 {too greedy.} Rg8 $19)) 18... Qxb2+ {[%emt 0:20:47]} 19. Kd2 {[%emt 0:00:06][%cal Rd5c7]} Qb7 {[%emt 0:01:33] Prevents Nc7+.} (19... c3+ $2 20. Ke2 Qb5+ 21. Kf2) 20. Ke2 {[%emt 0:01:07]} h6 $2 {[%emt 0:09:07]} (20... Qc6 $19 21. Bf2 Nc5) 21. Qh4 $2 {[%emt 0:01:18][%mdl 8192]} (21. Qg3 $17 g5 22. Kf1) 21... Nc5 {[%emt 0:08:31]} (21... Bxa3 22. Qg3 Qc6 23. Qxg7 $11) 22. Kf1 {[%emt 0:01:50]} Ne6 {[%emt 0:00:26]} 23. Bb6 {[%emt 0:00:16]} (23. Qxc4 $142 Bxa3 24. Qd3) 23... Be7 {[%emt 0:01:26]} 24. Qxc4 {[%emt 0:00:41]} O-O {[%emt 0:00:28]} 25. Rb1 {[%emt 0:00:19]} Qd7 {[%emt 0:00:50] White must now prevent ...Bb7.} 26. Red1 {[%emt 0:00:22]} Qe8 {[%emt 0:00:23]} 27. a4 {[%emt 0:00:39]} Bb7 {[%emt 0:00:31]} 28. Nc7 {[%emt 0:00:35]} Qc6 {[%emt 0:00:33]} 29. Qxc6 {[%emt 0:00:22]} Bxc6 {[%emt 0:00:03] This bishop pair is nice.} 30. Nxa6 {[%emt 0:00:14]} Ra8 {[%emt 0:00:19]} 31. Nb4 {[%emt 0:00:41]} Bxa4 {[%emt 0:00:19]} 32. Nd5 {[%emt 0:00:21]} Rfe8 {[%emt 0:00:41]} 33. Rd2 {[%emt 0:00:51]} Bg5 {[%emt 0:00:50]} 34. Rf2 {[%emt 0:00:22]} Rac8 {[%emt 0:00:09]} 35. c3 {[%emt 0:00:12]} Bc6 {[%emt 0:00:30]} 36. c4 {[%emt 0:00:43]} Bb7 {[%emt 0:00:04]} 37. Ba5 {[%emt 0:00:57]} Ba6 {[%emt 0:00:32]} 38. Nb6 {[%emt 0:00:09]} Rc5 {[%emt 0:00:23]} 39. Bc3 {[%emt 0:00:38]} Bxc4+ {[%emt 0:00:08]} 40. Nxc4 {[%emt 0:00:32]} Rxc4 {[%emt 0:00:04]} 41. Be1 {[%emt 0:30:18]} Nd4 {[%emt 0:32:01]} 42. Rb4 {[%emt 0:00:45]} Rxb4 {[%emt 0:00:23]} 43. Bxb4 {[%emt 0:00:02]} Rxe5 {[%emt 0:00:34] ...Rb5 is the strong threat.} 44. Bc3 {[%emt 0:00:13]} Re4 {[%emt 0:00:36]} 45. Bxd4 {[%emt 0:00:10]} Rxd4 {[%emt 0:00:04]} 46. Rxf5 {[%emt 0:00:07]} Rf4+ {[%emt 0:00:05] Weighted Error Value: White=1.11/Black=0.66} 0-1